Workbook

Sheet Sheet1
M1: Boxes must be moved from (0,0) to a position (350,500) and turned over (upside down, or rotated 1800)
B2: Given The Two positions
B3: Q1 | C3: 0 | D3: 0 | F3: =+C3 -> 0 | G3: =+D3 -> 0 | I3: =+PI()/180 -> 0.01745329252 | J3: 400 | K3: 500
B4: f1 | C4: 0 | D4: =+C4*D_R -> 0 | F4: =+F3+J3*COS(D4) -> 400 | G4: =+G3+J3*SIN(D4) -> 0
B6: Q2 | C6: -350 | D6: 500 | F6: =+C6 -> -350 | G6: =+D6 -> 500 | I6: Y
B7: f2 | C7: 180 | D7: =+C7*D_R -> 3.141592654 | F7: =+F6+J3*COS(D10) -> -750 | G7: =+G6+J3*SIN(D10) -> 500
B9: P12 | C9: =Pole2(C3:D3,D4,C6:D6,D7) -> -175 | D9: 250
B10: f12 | C10: =+C7-C4 -> 180 | D10: =+C10*D_R -> 3.141592654
B12: Select | C12: 12 | D12: 5
B13: Moving Pivot 1 #1 | C13: =+C12*10-100 -> 20 | D13: =+D12*10-100 -> -50 | F13: =+C13-$C$9 -> 195 | G13: =+D13-$D$9 -> -300 | H13: =mag(F13,G13) -> 357.8058133 | I13: =+ang(F13,G13) -> 5.288764201 | J13: =I13/D_R -> 303.0238676
B14: Moving Pivot 2 #1 | C14: =+C15*10-100 -> 280 | D14: =+D15*10-100 -> -50 | F14: =+C14-$C$9 -> 455 | G14: =+D14-$D$9 -> -300 | H14: =mag(F14,G14) -> 545 | I14: =+ang(F14,G14) -> 5.700271718 | J14: =+I14/D_R -> 326.6015115
C15: 38 | D15: 5
B16: Moving Pivot 1 #2 | C16: =+$C$9+H13*COS(I13+$D$10) -> -370 | D16: =+$D$9+H13*SIN(I13+$D$10) -> 550 | F16: =+ang((C16-C13),(D16-D13)) -> 2.147171547 | G16: =+F16/D_R -> 123.0238676 | H16: =+mag((C16-C13),(D16-D13))/2 -> 357.8058133
B17: Moving Pivot 2 #2 | C17: =+$C$9+H14*COS(I14+$D$10) -> -630 | D17: =+$D$9+H14*SIN(I14+$D$10) -> 550 | F17: =+ang((C17-C14),(D17-D14)) -> 2.558679065 | G17: =+F17/D_R -> 146.6015115 | H17: =+mag((C17-C14),(D17-D14))/2 -> 545
F18: =+(C13+C16)/2 -> -175 | G18: =+(D13+D16)/2 -> 250
B19: Yellow cells are the input cells | F19: =+(C14+C17)/2 -> -175 | G19: =+(D14+D17)/2 -> 250
G21: =+ang((C14-C13),(D14-D13)) -> 0
B22: a12 | C22: =+C9 -> -175 | D22: =+D9 -> 250 | F22: r | G22: a3
C23: =+C22+K3*COS(F16-PI()/2) -> 244.2218082 | D23: =+D22+K3*SIN(F16-PI()/2) -> 522.4941753 | E23: 1 | F23: =+mag((C3-C13),(D3-D13)) -> 53.85164807 | G23: =+ang((C3-C13),(D3-D13))-G21+2*PI() -> 8.234488011 | H23: =+G23/D_R -> 471.8014095
C24: =+C22-K3*COS(F16-PI()/2) -> -594.2218082 | D24: =+D22-K3*SIN(F16-PI()/2) -> -22.4941753 | E24: 2 | F24: =+mag((F4-C13),(G4-D13)) -> 383.2753579 | G24: =+ang((F4-C13),(G4-D13))-2*PI()-G21 -> -6.152357911 | H24: =+G24/D_R -> -352.5041424
B26: b12 | C26: =+C9 -> -175 | D26: =+D9 -> 250
C27: =+C26+K3*COS(F17-PI()/2) -> 100.2293578 | D27: =+D26+K3*SIN(F17-PI()/2) -> 667.4311927
C28: =+C26-K3*COS(F17-PI()/2) -> -450.2293578 | D28: =+D26-K3*SIN(F17-PI()/2) -> -167.4311927
F29: Which side
B30: link2 | C30: 38 | E30: =+SQRT((C30*10)^2-H16^2) -> 127.9648389 | F30: -1
B31: link4 | C31: 57 | E31: =+SQRT((C31*10)^2-H17^2) -> 166.9580786 | F31: -1
B33: link3 | C33: =+mag((C14-C13),(D14-D13)) -> 260
C34: =+C16 -> -370 | D34: =+D16 -> 550
B35: Fixed pivot 1 | C35: =+F18+F30*E30*COS(F16-PI()/2) -> -282.2913023 | D35: =G18+F30*E30*SIN(F16-PI()/2) -> 180.2606535 | F35: =+ang((C36-C35),(D36-D35))-2*PI() -> -0.6509583922 | G35: =+F35/D_R -> -37.29716851
C36: =+C13 -> 20 | D36: =+D13 -> -50 | F36: =+ang((C16-C35),(D16-D35)) -> 1.803708833 | G36: =+F36/D_R -> 103.3449036
C37: =+C17 -> -630 | D37: =+D17 -> 550
B38: Fixed Pivot 2 | C38: =+F19+F31*E31*COS(F17-PI()/2) -> -266.9035295 | D38: =+G19+F31*E31*SIN(F17-PI()/2) -> 110.6129803 | F38: =+ang((C39-C38),(D39-D38)) -> 5.99753949 | G38: =+F38/D_R -> 343.6337003
C39: =+C14 -> 280 | D39: =+D14 -> -50
B40: link1 | C40: =+mag((C35-C38),(D35-D38)) -> 71.32728747 | D40: =+ang((C38-C35),(D38-D35)) -> 4.929833192 | E40: =+D40/D_R -> 282.4586356
B41: Animate
A42: =+G36-G35 -> 140.6420721 | B42: =+G35 -> -37.29716851
A43: =+A42/50 -> 2.812841443 | B43: 50
B44: =+B42+A43*B43 -> 103.3449036 | C44: =FourBar2($C$30*10,$C$33,$C$31*10,$C$40,-1,B44*D_R-$D$40)+$D$40 -> 9.424777961 | D44: 8.5445966
C45: =+C44/D_R -> 540 | D45: =+D44/D_R -> 489.5693228
G46: =+C44-G24 -> 15.57713587
B47: A0 | C47: =+C35 -> -282.2913023 | D47: =+D35 -> 180.2606535
B48: A | C48: =+C47+C30*10*COS(B44*D_R) -> -370 | D48: =+D47+C30*10*SIN(B44*D_R) -> 550 | G48: =+SIN(C44-G24) -> 0.1304545126
B49: B | C49: =+C50+C31*10*COS(D44) -> -630 | D49: =+D50+C31*10*SIN(D44) -> 550
B50: B0 | C50: =+C38 -> -266.9035295 | D50: =+D38 -> 110.6129803
C52: =+C48+F23*COS(C44+G23) -> -350 | D52: =+D48+F23*SIN(C44+G23) -> 500
C53: =+C48+F24*COS(C44+G24) -> -750 | D53: =+D48+F24*SIN(C44+G24) -> 500
D116: 1
